Cogmind - Beta 12 @@@ ROGUE MODE // 2023.06.08 @ 12:16:07 Player: Mr Goldstein Result: Self-destructed Performance ------------- Evolutions (3) 1500 Regions Visited (8) 1600 Robots Destroyed (12) 60 Value Destroyed (490) 490 Prototype IDs (23) 460 Alien Tech Used (0) 0 Bonus (521) 521 TOTAL SCORE: 4631 Bonus ------- Pacifist 200 Follower Combat Kills 21 Aligned with FarCom 300 Cogmind --------- Core Integrity 700/700 Matter 300/300 Energy 99/100 System Corruption 0% Temperature Cool (0) Movement Core (50) Location -7/Factory Parts ------- > --- POWER (1) -------- (None) > --- PROPULSION (5) --- (None) > --- UTILITY (5) ------ 0b10 Alert Chip Armor Integrity Analyzer > --- WEAPON (2) ------- (None) > --- INVENTORY (5) ---- (None) Peak State ------------ > --- POWER ------------ (None) > --- PROPULSION ------- Aluminum Leg Aluminum Leg Aluminum Leg > --- UTILITY ---------- Small Storage Unit 0b10 Alert Chip Armor Integrity Analyzer System Shield > --- WEAPON ----------- AWS/Thermal > --- INVENTORY -------- Improved Trap Extractor Army-in-a-Box [Rating: 38] Favorites ----------- Power None Propulsion Aluminum Leg Leg Aluminum Leg Flight Unit Flight Unit Utility 0b10 Alert Chip Storage Small Storage Unit Processor 0b10 Alert Chip Hackware System Shield Weapon AWS/Thermal Energy Gun AWS/Thermal Build | -11 -10 -10 -9 -9 -9 -8 -8 -7 ------- Run | Jun Mat Min Mat Min Exi Min Mat Fac Slots Evolved 6 | . . . 2 . . . 2 2 Power . | . . . . . . . . . Propulsion 3 | . . . 1 . . . 1 1 Utility 3 | . . . 1 . . . 1 1 Weapon . | . . . . . . . . . Parts Attached 9 | . . . . 1 3 4 1 . Power . | . . . . . . . . . Engine . | . . . . . . . . . Core . | . . . . . . . . . Reactor . | . . . . . . . . . Propulsion 4 | . . . . 1 . 3 . . Treads . | . . . . . . . . . Leg 3 | . . . . . . 3 . . Wheel . | . . . . . . . . . Hover . | . . . . . . . . . Flight 1 | . . . . 1 . . . . Utility 4 | . . . . . 2 1 1 . Device . | . . . . . . . . . Storage 1 | . . . . . 1 . . . Processor 2 | . . . . . 1 . 1 . Hackware 1 | . . . . . . 1 . . Protection . | . . . . . . . . . Artifact . | . . . . . . . . . Weapon 1 | . . . . . 1 . . . Energy Gun 1 | . . . . . 1 . . . Energy Cannon . | . . . . . . . . . Ballistic Gun . | . . . . . . . . . Ballistic Cannon . | . . . . . . . . . Launcher . | . . . . . . . . . Special Weapon . | . . . . . . . . . Impact Weapon . | . . . . . . . . . Slashing Weapon . | . . . . . . . . . Piercing Weapon . | . . . . . . . . . Special Melee Weapon . | . . . . . . . . . Unidentified Prototypes . | . . . . . . . . . Parts Lost 6 | . . . . . . 1 5 . Power . | . . . . . . . . . Propulsion 4 | . . . . . . 1 3 . Utility 2 | . . . . . . . 2 . Weapon . | . . . . . . . . . Highest Loss Streak 3 | . . . . . . 1 3 . To Critical Strikes . | . . . . . . . . . Average Slot Usage (%) 42 | . . . . 4 37 54 59 15 Leg 6 | . . . . . . 8 19 . Flight 6 | . . . . 4 11 8 . . Storage 8 | . . . . . 8 11 8 . Processor 9 | . . . . . 9 11 15 15 Hackware 3 | . . . . . . 4 8 . Energy Gun 7 | . . . . . 8 11 7 . Naked Turns 196 | . 11 14 69 102 . . . . Heaviest Build 13 | . . . . . 13 13 13 . Greatest Support 30 | 3 3 3 3 4 4 30 30 3 Greatest Overweight (x) 3 | . . . . . 3 3 1 . Average Overweight (x) . | . . . . . 1 1 . . Largest Inventory Capacity 8 | 5 5 5 5 5 8 8 8 5 Average Capacity 7 | 5 5 5 5 5 7 8 7 5 Most Carried 7 | 1 1 1 1 3 7 7 7 . Average Carried 5 | . 1 1 1 1 6 7 6 . Final Capacity 8 | 5 5 5 5 5 8 8 5 5 Final Carried 7 | 1 1 1 1 2 7 7 . . Class Distribution -------------------- 100% | Mutant Dominant Class ---------------- Mutant | -10/Materials Mutant | -10/Mines Mutant | -9/Materials Mutant | -9/Mines Mutant | -9/Exiles Mutant | -8/Mines Mutant | -8/Materials Mutant | -7/Factory Resources | -11 -10 -10 -9 -9 -9 -8 -8 -7 ----------- Run | Jun Mat Min Mat Min Exi Min Mat Fac Matter Collected 295 | 195 . . . 21 . 79 . . Remotely . | . . . . . . . . . Salvage Created 479 | . . . . . . 339 140 . Parts 19 | . . . . . . 11 8 . Haulers Intercepted . | . . . . . . . . . Recyclers Shooed . | . . . . . . . . . Parts Field Recycled . | . . . . . . . . . Retrieved Matter . | . . . . . . . . . Parts Self-Destructed . | . . . . . . . . . Prevented . | . . . . . . . . . Kills | -11 -10 -10 -9 -9 -9 -8 -8 -7 ------- Run | Jun Mat Min Mat Min Exi Min Mat Fac Combat Hostiles Destroyed 11 | . . . . . . 9 2 . Guns 8 | . . . . . . 6 2 . AOE 3 | . . . . . . 3 . . Classes Destroyed 5 | . . . . . . 4 1 . Watcher 1 | . . . . . . . 1 . Swarmer 3 | . . . . . . 3 . . Grunt 6 | . . . . . . 4 2 . Brawler 1 | . . . . . . 1 . . Duelist 1 | . . . . . . 1 . . Best Kill Streak 3 | . . . . . . 3 3 . Combat Bots Only 3 | . . . . . . 3 2 . Max Kills in Single Turn 3 | . . . . . . 3 1 . Gunslinging . | . . . . . . . . . Exploded 3 | . . . . . . 3 . . Melee . | . . . . . . . . . Uniques/NPCs Destroyed . | . . . . . . . . . Combat | -11 -10 -10 -9 -9 -9 -8 -8 -7 -------- Run | Jun Mat Min Mat Min Exi Min Mat Fac Damage Taken 1506 | 2 18 23 29 274 . 167 993 . Core 960 | 2 18 23 29 274 . 83 531 . Absorbed by Shields . | . . . . . . . . . Core Remaining (%) 46 | 99 . 82 . . . 3 3 . Volleys Fired . | . . . . . . . . . Largest . | . . . . . . . . . Hottest . | . . . . . . . . . Shots Fired 57 | . . . . . . 34 23 . Gun 57 | . . . . . . 34 23 . Cannon . | . . . . . . . . . Launcher . | . . . . . . . . . Special . | . . . . . . . . . Kinetic . | . . . . . . . . . Thermal 57 | . . . . . . 34 23 . Explosive . | . . . . . . . . . Electromagnetic . | . . . . . . . . . Robot Hit Streak 16 | . . . . . . 16 8 . Robot Miss Streak 2 | . . . . . . 1 2 . Penetration Max . | . . . . . . . . . Secondary Targets . | . . . . . . . . . Autonomous 58 | . . . . . . 34 24 . Shots Hit Robots 49 | . . . . . . 30 19 . Core Hits 21 | . . . . 1 . 13 7 . Critical Kills . | . . . . . . . . . Critical Parts Destroyed . | . . . . . . . . . Critical Strikes . | . . . . . . . . . Melee Attacks . | . . . . . . . . . Impact . | . . . . . . . . . Slashing . | . . . . . . . . . Piercing . | . . . . . . . . . Sneak Attacks . | . . . . . . . . . Combat Hostiles . | . . . . . . . . . Follow-up Attacks . | . . . . . . . . . Damage Inflicted 1560 | 5 . . 8 15 . 1041 491 . Guns 1341 | . . . . . . 862 479 . Cannons . | . . . . . . . . . Explosions 179 | . . . . . . 179 . . Melee . | . . . . . . . . . Ramming 40 | 5 . . 8 15 . . 12 . Kinetic . | . . . . . . . . . Thermal 1520 | . . . . . . 1041 479 . Explosive . | . . . . . . . . . Electromagnetic . | . . . . . . . . . Impact . | . . . . . . . . . Slashing . | . . . . . . . . . Piercing . | . . . . . . . . . Highest Corruption 2 | . . . 2 2 2 2 . . Average Corruption 2 | . . . 2 2 2 2 . . Corruption Purged . | . . . . . . . . . Corruption Blocked . | . . . . . . . . . Effects 17 | . . . . 2 5 10 . . Message Errors 6 | . . . . . 2 4 . . Matter Fused 5 | . . . . 2 . 3 . . Energy Discharges 5 | . . . . . 2 3 . . Data Loss (minor) 1 | . . . . . 1 . . . Overload Shots . | . . . . . . . . . Overflow Damage 15 | . . . . . . 15 . . Projectiles . | . . . . . . . . . Explosions 15 | . . . . . . 15 . . Melee . | . . . . . . . . . Knockbacks . | . . . . . . . . . Impact . | . . . . . . . . . Kinetic . | . . . . . . . . . Secondary . | . . . . . . . . . Self-Inflicted Damage 12 | 2 . . 4 6 . . . . Shots . | . . . . . . . . . Rammed 7 | 1 . . 2 4 . . . . Targets Rammed 8 | 1 . . 2 4 . . 1 . Kicked 1 | . . . . . . . 1 . Crushed . | . . . . . . . . . Highest Temperature . | . . . . . . . . . Average Temperature . | . . . . . . . . . Received Heat Transfer 360 | . . 15 15 42 . 72 216 . Siege Activations . | . . . . . . . . . Robots Corrupted . | . . . . . . . . . Combat Hostiles . | . . . . . . . . . Parts Fried . | . . . . . . . . . Impact Corruptions . | . . . . . . . . . Robots Melted . | . . . . . . . . . Combat Hostiles . | . . . . . . . . . Parts Melted 1 | . . . . . . 1 . . Heat Transferred 1902 | . . . . . . 1310 592 . Parts Sabotaged . | . . . . . . . . . Parts Stolen . | . . . . . . . . . Parts Stripped . | . . . . . . . . . Power Chain Reactions . | . . . . . . . . . Missiles Intercepted . | . . . . . . . . . Alert | -11 -10 -10 -9 -9 -9 -8 -8 -7 ------- Run | Jun Mat Min Mat Min Exi Min Mat Fac Peak Influence 314 | . . 15 88 165 . 314 233 102 Initial 122 | . . . 5 34 . . 122 102 Average 65 | . . 13 37 79 . 42 145 102 Maximum Alert Level 1 | . . . . . . 1 1 . Low Security (%) 91 | 100 100 100 100 100 . 87 92 100 Level 1 8 | . . . . . . 12 7 . Level 2 . | . . . . . . . . . Level 3 . | . . . . . . . . . Level 4 . | . . . . . . . . . Level 5 . | . . . . . . . . . High Security . | . . . . . . . . . Max Security . | . . . . . . . . . Squads Dispatched 1 | . . . . . . . 1 . Investigation . | . . . . . . . . . Extermination . | . . . . . . . . . Reinforcement 1 | . . . . . . . 1 . Assault . | . . . . . . . . . Garrison . | . . . . . . . . . Intercept . | . . . . . . . . . Searches Triggered . | . . . . . . . . . Construction Impeded . | . . . . . . . . . Haulers Reinforced . | . . . . . . . . . Active Scanning Responses . | . . . . . . . . . Cargo Convoy Interrupts . | . . . . . . . . . Stealth | -11 -10 -10 -9 -9 -9 -8 -8 -7 --------- Run | Jun Mat Min Mat Min Exi Min Mat Fac Distress Signals 3 | . . . 2 . . . 1 . Communications Jammed . | . . . . . . . . . Distress Signals . | . . . . . . . . . Times Spotted 49 | . 2 2 6 9 . 11 19 . Peak Tracking Total 13 | . 3 2 7 6 . 3 13 . Tactical Retreats 7 | . . . 1 2 . 2 2 . Traps | -11 -10 -10 -9 -9 -9 -8 -8 -7 ------- Run | Jun Mat Min Mat Min Exi Min Mat Fac Traps Triggered 2 | . . . 1 1 . . . . Indirectly . | . . . . . . . . . Trap Hack Attempts . | . . . . . . . . . Triggered . | . . . . . . . . . Disarmed . | . . . . . . . . . Reprogrammed . | . . . . . . . . . Reused 1 | . . . . 1 . . . . Traps Extracted . | . . . . . . . . . Installed 2 | . . . . 2 . . . . Triggered 1 | . . . . 1 . . . . Machines | -11 -10 -10 -9 -9 -9 -8 -8 -7 ---------- Run | Jun Mat Min Mat Min Exi Min Mat Fac Machines Disabled 7 | . . . . . . 7 . . Max in Single Turn 6 | . . . . . . 6 . . Machines Repaired . | . . . . . . . . . Machines Sabotaged . | . . . . . . . . . Overloaded Fab Kills . | . . . . . . . . . Hacking | -11 -10 -10 -9 -9 -9 -8 -8 -7 --------- Run | Jun Mat Min Mat Min Exi Min Mat Fac Machines Accessed 5 | . . . 2 1 2 . . . Terminals 2 | . . . 2 . . . . . Fabricators . | . . . . . . . . . Repair Stations . | . . . . . . . . . Recycling Units . | . . . . . . . . . Scanalyzers . | . . . . . . . . . Garrison Access . | . . . . . . . . . Total Hacks 7 | . . . 4 1 2 . . . Successful 4 | . . . 1 1 2 . . . Failed 3 | . . . 3 . . . . . Catastrophic 3 | . . . 3 . . . . . Database Lockouts . | . . . . . . . . . Manual 5 | . . . 4 . 1 . . . Terminals 4 | . . . 4 . . . . . Fabricators . | . . . . . . . . . Repair Stations . | . . . . . . . . . Recycling Units . | . . . . . . . . . Scanalyzers . | . . . . . . . . . Garrison Access . | . . . . . . . . . Terminal Hacks 4 | . . . 1 1 2 . . . Record 1 | . . . . . 1 . . . Open Door 1 | . . . . 1 . . . . Branch Access Points 1 | . . . 1 . . . . . EX-Prototype ID Bank 1 | . . . . . 1 . . . Fabricator Hacks . | . . . . . . . . . Repair Station Hacks . | . . . . . . . . . Recycling Unit Hacks . | . . . . . . . . . Scanalyzer . | . . . . . . . . . Garrison Access Hacks . | . . . . . . . . . Unauthorized Hacks . | . . . . . . . . . Terminals . | . . . . . . . . . Fabricators . | . . . . . . . . . Repair Stations . | . . . . . . . . . Recycling Units . | . . . . . . . . . Scanalyzers . | . . . . . . . . . Garrison Access . | . . . . . . . . . Data Cores Recovered . | . . . . . . . . . Used . | . . . . . . . . . Hacking Detections 1 | . . . 1 . . . . . Full Trace Events 1 | . . . 1 . . . . . Feedback Events . | . . . . . . . . . Feedback Blocked . | . . . . . . . . . Robot Schematics Acquired . | . . . . . . . . . Robots Built . | . . . . . . . . . Authchips . | . . . . . . . . . Time . | . . . . . . . . . Total Robot Build Rating . | . . . . . . . . . Part Schematics Acquired . | . . . . . . . . . Parts Built . | . . . . . . . . . Authchips . | . . . . . . . . . Time . | . . . . . . . . . Total Part Build Rating . | . . . . . . . . . Parts Repaired . | . . . . . . . . . Time . | . . . . . . . . . Parts Recycled . | . . . . . . . . . Recycled Matter . | . . . . . . . . . Retrieved Matter . | . . . . . . . . . Retrieved Components . | . . . . . . . . . Parts Scanalyzed . | . . . . . . . . . Part Schematics Acquired . | . . . . . . . . . Parts Damaged . | . . . . . . . . . Bothacking | -11 -10 -10 -9 -9 -9 -8 -8 -7 ------------ Run | Jun Mat Min Mat Min Exi Min Mat Fac Used RIF Installer . | . . . . . . . . . Robots Hacked . | . . . . . . . . . Non-combat . | . . . . . . . . . Combat . | . . . . . . . . . Robot Hacks Applied . | . . . . . . . . . Relay Couplers Released . | . . . . . . . . . Fabnet Peak Effective % . | . . . . . . . . . Robots Rewired . | . . . . . . . . . Allies Hacked . | . . . . . . . . . Hacks Repelled . | . . . . . . . . . Allies | -11 -10 -10 -9 -9 -9 -8 -8 -7 -------- Run | Jun Mat Min Mat Min Exi Min Mat Fac Total Allies 3 | . . . . 3 . . . . Largest Group 3 | . . . . 3 . . . . Highest-Rated Group 40 | . . . . 40 . . . . Highest-Rated Ally 16 | . . . . 16 . . . . Total Orders . | . . . . . . . . . Ally Attacks 14 | . . . . 14 . . . . Total Damage 163 | . . . . 163 . . . . Kills 5 | . . . . 5 . . . . Allies Corrupted . | . . . . . . . . . Allies Melted . | . . . . . . . . . Intel | -11 -10 -10 -9 -9 -9 -8 -8 -7 ------- Run | Jun Mat Min Mat Min Exi Min Mat Fac Robot Analysis Total . | . . . . . . . . . Derelict Logs Recovered 2 | . . . . 2 . . . . Drone Launches . | . . . . . . . . . Drone Recoveries . | . . . . . . . . . Exploration | -11 -10 -10 -9 -9 -9 -8 -8 -7 ------------- Run | Jun Mat Min Mat Min Exi Min Mat Fac Turns Passed 1583 | 15 11 14 69 165 343 721 222 23 Spaces Moved 1362 | 26 22 27 134 340 258 318 192 45 Core 490 | 26 22 27 134 185 . . 51 45 Treads . | . . . . . . . . . Legs 307 | . . . . . . 166 141 . Wheels . | . . . . . . . . . Hover . | . . . . . . . . . Flight 565 | . . . . 155 258 152 . . Fastest Speed 40 | 50 50 50 50 40 40 120 50 50 Average Speed 111 | 50 50 50 50 45 131 211 113 50 Slowest Speed 280 | 50 50 50 50 50 280 280 190 50 Overloaded Moves . | . . . . . . . . . Propulsion Burnouts . | . . . . . . . . . Robots Hopped 2 | . . . . 2 . . . . Cave-ins Triggered . | . . . . . . . . . Exploration Rate (%) 30 | 3 10 10 17 72 62 68 28 3 Regions Visited 8 Branch Regions 4 Pre-discovered Areas 1 | . . . . . 1 . . . Known Exits Taken 3 | . . . 1 1 . 1 . . Unknown Exits Taken 5 | 1 1 1 . . 1 . 1 . Scrap Searched 4 | . . 1 . 1 . 2 . . Spaces Dug . | . . . . . . . . . Terrain Destroyed 33 | . . . . . . 26 7 . Melee . | . . . . . . . . . Projectile 9 | . . . . . . 2 7 . AOE 24 | . . . . . . 24 . . Terrain Rammed . | . . . . . . . . . Walls Destroyed . | . . . . . . . . . Machines Disabled . | . . . . . . . . . Actions | -11 -10 -10 -9 -9 -9 -8 -8 -7 --------- Run | Jun Mat Min Mat Min Exi Min Mat Fac Total 1419 | 27 21 26 135 347 261 363 194 45 Wait 40 | . . . . . . 40 . . Move 1350 | 25 21 26 133 335 257 317 191 45 Hop 2 | . . . . 2 . . . . Pick Up 4 | 1 . . . 2 1 . . . Fast Attach 8 | . . . . 1 2 4 1 . Attach 1 | . . . . . 1 . . . Detach . | . . . . . . . . . Swap . | . . . . . . . . . Drop 2 | . . . . 1 . . 1 . Fire . | . . . . . . . . . Melee . | . . . . . . . . . Ram 7 | 1 . . 2 4 . . . . Kick 1 | . . . . . . . 1 . Crush . | . . . . . . . . . Escape Stasis . | . . . . . . . . . Rewire 2 | . . . . . . 2 . . Trap 2 | . . . . 2 . . . . Miscellaneous . | . . . . . . . . . Route ------- -11/Junkyard -10/Materials -10/Mines -9/Materials -9/Mines (discovered 3 exits: *Mat x2 / *Exi) -9/Exiles (discovered 2 exits: [*Min x2]) -8/Mines -8/Materials -7/Factory History --------- Turn | Location | Event 8 | -11/Junkyard | Discovered new exit (range 14) 16 | -11/Junkyard | Entered Materials 23 | -10/Materials | Discovered new exit (range 10) 27 | -10/Materials | Entered Mines 33 | -10/Mines | Discovered new exit (range 15) 41 | -10/Mines | Entered Materials 41 | -9/Materials | Evolved 2 slots: Propulsion x1, Utility x1 92 | -9/Materials | Identified exit to Mines 110 | -9/Materials | Entered Mines 117 | -9/Mines | Discovered new exit (range 16) 140 | -9/Mines | Met a Derelict who couldn't figure out how to use a Trap Extractor 176 | -9/Mines | Found a hidden stash of uninstalled traps 185 | -9/Mines | Identified exit to Materials 188 | -9/Mines | Core integrity fell below 50% 200 | -9/Mines | Assisted by bots powering up and referring to "LRC-V3" 241 | -9/Mines | Identified exit to Exiles 273 | -9/Mines | Deemed a non-threat by the Exiles lab entrance 275 | -9/Mines | Entered Exiles 281 | -9/Exiles | Discovered new exit (range 15) 286 | -9/Exiles | Met 8R-AWN 291 | -9/Exiles | Met EX-HEX 308 | -9/Exiles | Met EX-DEC 309 | -9/Exiles | Build established: Mutant 310 | -9/Exiles | Learned location of Zion (-7) 318 | -9/Exiles | Met EX-BIN 324 | -9/Exiles | Aligned with FarCom system 324 | -9/Exiles | Given EX-Vault access code 334 | -9/Exiles | Opened EX-Vault 338 | -9/Exiles | Found 0b10 Alert Chip 341 | -9/Exiles | Found Army-in-a-Box 345 | -9/Exiles | Found AWS/Thermal 402 | -9/Exiles | Warned to stay clear of 0b10 Research branches 581 | -9/Exiles | Discovered new exit (range 13) 618 | -9/Exiles | Stole three prototypes: 0b10 Alert Chip, Army-in-a-Box, AWS/Thermal 618 | -9/Exiles | Entered Mines 1210 | -8/Mines | Core integrity fell below 20% 1329 | -8/Mines | Discovered exit to Materials (range 8) 1339 | -8/Mines | Entered Materials 1339 | -8/Materials | Evolved 2 slots: Propulsion x1, Utility x1 1544 | -8/Materials | Lost 3 parts (3n) 1544 | -8/Materials | Core integrity fell below 50% 1557 | -8/Materials | Core integrity fell below 20% 1558 | -8/Materials | Discovered new exit (range 8) 1561 | -8/Materials | Entered Factory 1561 | -7/Factory | Evolved 2 slots: Propulsion x1, Utility x1 1563 | -7/Factory | FarCom data flow suspended 1584 | -7/Factory | Self-destructed Last Messages --------------- 01540_ ALERT: Hostiles spotted, dispatching reinforcements to Terminal M012. 01543_ Penetrated by Slug. 01549_ Knocked back. 01551_ Penetrated by Slug. 01551_ Knocked back. 01556_ Sml. Storage Unit destroyed. 01557_ G-47 Trooper knocked back. 01557_ System Shield destroyed. 01558_ EXIT=FOUND 01559_ Penetrated by Slug. 01559_ Knocked back. PARAMETERS=PROPULSION+1,UTILITY+1 LOCATION=UNKNOWN GOAL=ESCAPE 01561_ Receiving FarCom transmissions... 01563_ FARCOM_MSG: Not cool, anonymous tester bot. We've taken inventory and discovered your thievery. Let's see how you like having parts stolen! 01563_ FarCom data flow suspended. Map ----- +----------------------------------------------------+ | ???? #?????????????? | | ???? #?????????????? | | ???? #?????????????? | | ?????+########## #?????????????? | | ???????????????# #?????????????? | | ???????????????# #?????????????? | | ???????????##### +?????????????? | | ?????????+ #?????????????? | | ??????????###### #?????????????? | | ???????????????# #?????????????? | | ???????????????##### #### #### #?????????????? | | ?????????????????###+####+#### #?????????????? | | ?????????????# # #?????????????? | | ???????????????""" """ """ * # #?????????????? | | ?????????????????? """ """ # #?????????????? | | ???????????????""" """ """ # #?????????????? | | ?????????????# # #?????????????? | | ?????????????#]* """ """ ]# #?????????????? | | ?????????????????? """ """ # #?????????????? | | ???????????????????""" """ # #?????????????? | | ?????????????? + +?????????????? | | ?????????????? # #?????????????? | | ??????????????##+############# #?????????????? | | ????????????????????# # #?????????????? | | ????????????????????# ! # #?????????????? | | ????????????????????# @ # ########??????? | | ????????????????????# "" # ??? | | ????????????????????+ "" + ??? | | ????????????????????# """ # ??? | | ????????????????????# """ # ???? | | ????????????????????# """ # ???? | | ????????????????????+ #########+######????? | | ????????????????????##########???????? ?????????? | | ??????????????????????????????????????? ????????? | | ???????????????????????????????????????? ???????? | | ?????????????????????????????????????????????????? | | ?????????????????????????????????????????????????? | | ?????????????????????????????????????????????????? | | ?????????????????????????????????????????????????? | | ?????????????????????????????????????????????????? | | ?????????????????????????????????????????????????? | | ?????????????????????????????????????????????????? | | ?????????????????????????????????????????????????? | | ?????????????????????????????????????????????????? | | ?????????????????????????????????????????????????? | | ?????????????????????????????????????????????????? | | ?????????????????????????????????????????????????? | | ?????????????????????????????????????????????????? | | ?????????????????????????????????????????????????? | | ?????????????????????????????????????????????????? | +----------------------------------------------------+ Best States ------------- Heat Dissipation 34 Energy Generation 5 Energy Capacity 100 Matter Stores 300 Matter Capacity 300 Sight Range 16 Terrain Scan Density 10 Evasion (%) 62 Armor Integrity Analysis 30 Defensive Hacking 10 Item Schematics ----------------- None Robot Schematics ------------------ None Fabricated ------------ Nothing Alien Tech Used ----------------- None Achievements -------------- None Challenges ------------ None Game ------ Seed EnhancedDiametricBuckler Manual? 0 Play Time 00:07:36 Cumulative 282.6 hours Start 2023.06.08 @ 12:08:40 End 2023.06.08 @ 12:16:07 Sessions 1 Manual Loads 0 Difficulty Rogue Special Mode None Game No. 832 Rogue 832 Adventurer 0 Explorer 0 Win Type - Total 17 Types 8/0/7/2/0/0/0/0/0 Lore% 90 Gallery% 87 Achievement% 79 Wizard Run 0 Options --------- ASCII 0 Keyboard 0 Movement Numpad Keybinds 0 Fullscreen 1 Font 16/SmallcapsGlow Map View 75x55 Tactical HUD 1 Map Filters NONE Filters NONE Steam 1 RUN: 9bbc8c75-8be7-4d4b-97c1-8e38f70cb637